[Event "*** Titled Tuesday 3|2 Blitz"]
[Site "Chess.com"]
[Date "2017.06.06"]
[Round "1"]
[White "andreimacovei2000"]
[Black "angieflynn"]
[Result "1-0"]
[WhiteElo "2391"]
[BlackElo "1768"]
[TimeControl "180+2"]
[EndTime "13:59:17 PDT"]
[Termination "andreimacovei2000 won by checkmate"]

1. e4 {[%clk 0:03:02]} 1... e6 {[%clk 0:02:58.9]} 2. d4 {[%clk 0:03:02.2]} 2...
d5 {[%clk 0:02:58.6]} 3. Nc3 {[%clk 0:03:03.1]} 3... Nf6 {[%clk 0:02:56.6]} 4.
Bg5 {[%clk 0:03:02.7]} 4... Be7 {[%clk 0:02:53.3]} 5. e5 {[%clk 0:02:56.9]} 5...
Ne4 {[%clk 0:02:52.5]} 6. Bxe7 {[%clk 0:02:46.6]} 6... Qxe7 {[%clk 0:02:53.2]}
7. Bd3 {[%clk 0:02:36.1]} 7... Nxc3 {[%clk 0:02:51.5]} 8. bxc3 {[%clk 0:02:38]}
8... c5 {[%clk 0:02:52.1]} 9. Nf3 {[%clk 0:02:38.3]} 9... Nc6 {[%clk 0:02:52.6]}
10. O-O {[%clk 0:02:38.5]} 10... h6 {[%clk 0:02:50.3]} 11. Re1 {[%clk
0:02:34.4]} 11... O-O {[%clk 0:02:48.5]} 12. Qd2 {[%clk 0:02:15.6]} 12... b6
{[%clk 0:02:48]} 13. Qf4 {[%clk 0:02:16]} 13... a5 {[%clk 0:02:43.8]} 14. Rab1
{[%clk 0:02:15.2]} 14... Qd8 {[%clk 0:02:35]} 15. a4 {[%clk 0:02:12.2]} 15...
Ba6 {[%clk 0:02:34.5]} 16. Bb5 {[%clk 0:02:12.4]} 16... Qc7 {[%clk 0:02:25.1]}
17. Rb2 {[%clk 0:02:07.4]} 17... Bxb5 {[%clk 0:02:25.3]} 18. Rxb5 {[%clk
0:02:03.4]} 18... cxd4 {[%clk 0:02:24.9]} 19. cxd4 {[%clk 0:01:59.5]} 19... Nb4
{[%clk 0:02:20.1]} 20. Rc1 {[%clk 0:01:50.3]} 20... Na2 {[%clk 0:02:17.3]} 21.
Ra1 {[%clk 0:01:38.9]} 21... Qxc2 {[%clk 0:02:15]} 22. Rxb6 {[%clk 0:01:28]}
22... Rab8 {[%clk 0:02:11.8]} 23. Rxb8 {[%clk 0:01:23.2]} 23... Rxb8 {[%clk
0:02:11.5]} 24. h4 {[%clk 0:01:24.6]} 24... Rb2 {[%clk 0:02:04.4]} 25. Qe3
{[%clk 0:01:21.5]} 25... Qxa4 {[%clk 0:01:55.9]} 26. Kh2 {[%clk 0:01:11.8]}
26... Qb4 {[%clk 0:01:49.1]} 27. Ne1 {[%clk 0:01:09.6]} 27... a4 {[%clk
0:01:44.8]} 28. Nd3 {[%clk 0:01:09.8]} 28... Qb3 {[%clk 0:01:25]} 29. Nxb2
{[%clk 0:01:07.3]} 29... Qxb2 {[%clk 0:01:26.9]} 30. Qe1 {[%clk 0:01:07.1]}
30... a3 {[%clk 0:01:22.6]} 31. Qb1 {[%clk 0:01:03]} 31... Nc3 {[%clk
0:01:18.1]} 32. Qc1 {[%clk 0:00:56]} 32... Na4 {[%clk 0:00:55.8]} 33. Qxb2
{[%clk 0:00:38.2]} 33... axb2 {[%clk 0:00:56.1]} 34. Rb1 {[%clk 0:00:39.7]}
34... f6 {[%clk 0:00:55]} 35. exf6 {[%clk 0:00:38.6]} 35... gxf6 {[%clk
0:00:55.5]} 36. Kg3 {[%clk 0:00:39.6]} 36... e5 {[%clk 0:00:56.5]} 37. dxe5
{[%clk 0:00:34.5]} 37... fxe5 {[%clk 0:00:57.3]} 38. f4 {[%clk 0:00:34.3]} 38...
e4 {[%clk 0:00:57.2]} 39. f5 {[%clk 0:00:33.3]} 39... Kf7 {[%clk 0:00:57.4]} 40.
Kf4 {[%clk 0:00:34]} 40... Kf6 {[%clk 0:00:57.9]} 41. g4 {[%clk 0:00:34.7]}
41... d4 {[%clk 0:00:51.5]} 42. g5+ {[%clk 0:00:35.8]} 42... hxg5+ {[%clk
0:00:51]} 43. hxg5+ {[%clk 0:00:37.7]} 43... Kf7 {[%clk 0:00:50.6]} 44. Ke5
{[%clk 0:00:30.5]} 44... d3 {[%clk 0:00:47]} 45. g6+ {[%clk 0:00:25.2]} 45...
Kg7 {[%clk 0:00:46.7]} 46. Rh1 {[%clk 0:00:22.9]} 46... d2 {[%clk 0:00:42.7]}
47. Rg1 {[%clk 0:00:17.5]} 47... Nc3 {[%clk 0:00:38.9]} 48. f6+ {[%clk
0:00:18.6]} 48... Kh6 {[%clk 0:00:21.3]} 49. f7 {[%clk 0:00:19.6]} 49... d1=Q
{[%clk 0:00:15.7]} 50. f8=Q+ {[%clk 0:00:20.3]} 50... Kh5 {[%clk 0:00:14.5]} 51.
Qh8# {[%clk 0:00:20.9]} 1-0

[Event "*** Titled Tuesday 3|2 Blitz"]
[Site "Chess.com"]
[Date "2017.06.06"]
[Round "1"]
[White "TrickyTrapChess"]
[Black "Drags95"]
[Result "1-0"]
[WhiteElo "2256"]
[BlackElo "2505"]
[TimeControl "180+2"]
[EndTime "13:59:44 PDT"]
[Termination "TrickyTrapChess won by resignation"]

1. c4 {[%clk 0:03:02]} 1... Nf6 {[%clk 0:03:00.4]} 2. Nc3 {[%clk 0:03:02.5]}
2... e6 {[%clk 0:03:00.9]} 3. e4 {[%clk 0:03:03.5]} 3... d5 {[%clk 0:02:38.6]}
4. e5 {[%clk 0:03:04]} 4... d4 {[%clk 0:02:25.9]} 5. exf6 {[%clk 0:03:00.8]}
5... dxc3 {[%clk 0:02:27.8]} 6. bxc3 {[%clk 0:03:00.2]} 6... Qxf6 {[%clk
0:02:26.9]} 7. d4 {[%clk 0:02:59.8]} 7... e5 {[%clk 0:02:22.3]} 8. Nf3 {[%clk
0:02:59.2]} 8... exd4 {[%clk 0:02:23.5]} 9. cxd4 {[%clk 0:02:55.5]} 9... Bb4+
{[%clk 0:02:23]} 10. Bd2 {[%clk 0:02:55.1]} 10... Bxd2+ {[%clk 0:02:23.7]} 11.
Qxd2 {[%clk 0:02:55.5]} 11... O-O {[%clk 0:02:25.5]} 12. Be2 {[%clk 0:02:53]}
12... Nc6 {[%clk 0:02:25.6]} 13. O-O {[%clk 0:02:50.1]} 13... Bg4 {[%clk
0:02:26.7]} 14. d5 {[%clk 0:02:48.1]} 14... Bxf3 {[%clk 0:02:22.3]} 15. Bxf3
{[%clk 0:02:47.7]} 15... Nd4 {[%clk 0:02:22.5]} 16. Be4 {[%clk 0:02:37.4]} 16...
c5 {[%clk 0:02:23.2]} 17. Rfe1 {[%clk 0:02:33.3]} 17... Rfe8 {[%clk 0:02:20.7]}
18. Rab1 {[%clk 0:02:29.7]} 18... b6 {[%clk 0:02:18.9]} 19. a4 {[%clk
0:02:24.1]} 19... Re5 {[%clk 0:02:09.4]} 20. Bd3 {[%clk 0:02:18.3]} 20... Rae8
{[%clk 0:02:07.7]} 21. Rxe5 {[%clk 0:02:13.4]} 21... Rxe5 {[%clk 0:02:08]} 22.
Re1 {[%clk 0:02:10.3]} 22... g6 {[%clk 0:01:45]} 23. h3 {[%clk 0:01:54.7]} 23...
Kg7 {[%clk 0:01:35.1]} 24. Rxe5 {[%clk 0:01:48.5]} 24... Qxe5 {[%clk 0:01:37]}
25. Qe3 {[%clk 0:01:35]} 25... Qxe3 {[%clk 0:01:24.3]} 26. fxe3 {[%clk
0:01:35.4]} 26... Nb3 {[%clk 0:01:26.2]} 27. Kf2 {[%clk 0:01:34.1]} 27... Kf6
{[%clk 0:01:26.7]} 28. Kf3 {[%clk 0:01:35.2]} 28... Ke5 {[%clk 0:01:27.7]} 29.
g4 {[%clk 0:01:32.9]} 29... Na5 {[%clk 0:01:16.3]} 30. h4 {[%clk 0:01:31.9]}
30... Nb7 {[%clk 0:01:17.1]} 31. g5 {[%clk 0:01:30.6]} 31... Nd6 {[%clk
0:01:17.7]} 32. Kg3 {[%clk 0:01:26.6]} 32... a6 {[%clk 0:01:11.6]} 33. Kf3
{[%clk 0:01:26]} 33... Nc8 {[%clk 0:01:08.7]} 34. Kg3 {[%clk 0:01:24.4]} 34...
Ne7 {[%clk 0:01:09.7]} 35. Kf3 {[%clk 0:01:24]} 35... Ng8 {[%clk 0:01:10.8]} 36.
Kg3 {[%clk 0:01:22.1]} 36... h6 {[%clk 0:01:09.4]} 37. Kg4 {[%clk 0:01:16.6]}
37... h5+ {[%clk 0:00:44]} 38. Kf3 {[%clk 0:01:15.8]} 38... Ne7 {[%clk
0:00:45.3]} 39. Kg3 {[%clk 0:01:13.6]} 39... Nc8 {[%clk 0:00:44.1]} 40. Kf3
{[%clk 0:01:12]} 40... Nd6 {[%clk 0:00:45.4]} 41. e4 {[%clk 0:00:59.4]} 41...
Kd4 {[%clk 0:00:41.4]} 42. Ke2 {[%clk 0:00:55.7]} 42... Ne8 {[%clk 0:00:28]} 43.
Kd2 {[%clk 0:00:56.3]} 43... Nd6 {[%clk 0:00:25.1]} 44. Ke2 {[%clk 0:00:56.2]}
44... Nb7 {[%clk 0:00:25.7]} 45. Kd2 {[%clk 0:00:55.9]} 45... Nd8 {[%clk
0:00:26.9]} 46. Ke2 {[%clk 0:00:56]} 46... Nb7 {[%clk 0:00:26.9]} 47. Kd2 {[%clk
0:00:56.4]} 47... Ke5 {[%clk 0:00:28]} 48. Ke3 {[%clk 0:00:56]} 48... Nd6 {[%clk
0:00:29.2]} 49. Kf3 {[%clk 0:00:55.2]} 49... Ne8 {[%clk 0:00:30.6]} 50. Ke3
{[%clk 0:00:52.6]} 50... f6 {[%clk 0:00:32.1]} 51. gxf6 {[%clk 0:00:51.5]} 51...
Nxf6 {[%clk 0:00:34]} 52. Kf3 {[%clk 0:00:49.9]} 52... Nh7 {[%clk 0:00:34.9]}
53. Ke3 {[%clk 0:00:49.3]} 53... g5 {[%clk 0:00:36.1]} 54. d6 {[%clk 0:00:39.6]}
54... Nf8 {[%clk 0:00:09.3]} 55. hxg5 {[%clk 0:00:39]} 55... h4 {[%clk
0:00:10.3]} 56. g6 {[%clk 0:00:37.4]} 56... Kf6 {[%clk 0:00:07.5]} 57. e5+
{[%clk 0:00:33.7]} 57... Kg7 {[%clk 0:00:08.8]} 58. Bf5 {[%clk 0:00:32.3]} 58...
h3 {[%clk 0:00:09.8]} 59. Bxh3 {[%clk 0:00:31.5]} 1-0

[Event "*** Titled Tuesday 3|2 Blitz"]
[Site "Chess.com"]
[Date "2017.06.06"]
[Round "1"]
[White "Alexander_Moskalenko"]
[Black "pedromartinez91"]
[Result "1-0"]
[WhiteElo "2681"]
[BlackElo "2340"]
[TimeControl "180+2"]
[EndTime "13:59:50 PDT"]
[Termination "Alexander_Moskalenko won on time"]

1. Nf3 {[%clk 0:03:02]} 1... e6 {[%clk 0:02:59]} 2. e4 {[%clk 0:03:01.5]} 2...
d5 {[%clk 0:02:59.7]} 3. exd5 {[%clk 0:03:03]} 3... exd5 {[%clk 0:02:59.9]} 4.
d4 {[%clk 0:03:04.9]} 4... Nf6 {[%clk 0:02:59.3]} 5. Bd3 {[%clk 0:03:03.3]} 5...
Be7 {[%clk 0:02:59.5]} 6. h3 {[%clk 0:02:58.4]} 6... O-O {[%clk 0:02:56.6]} 7.
O-O {[%clk 0:02:58.9]} 7... Nc6 {[%clk 0:02:56.4]} 8. c3 {[%clk 0:02:59.7]} 8...
h6 {[%clk 0:02:50.9]} 9. Bf4 {[%clk 0:02:58.4]} 9... Bd6 {[%clk 0:02:51.1]} 10.
Bxd6 {[%clk 0:02:59.2]} 10... cxd6 {[%clk 0:02:45.8]} 11. Re1 {[%clk 0:03:01.1]}
11... Ne7 {[%clk 0:02:46.2]} 12. Qc2 {[%clk 0:02:59.9]} 12... g6 {[%clk
0:02:40.9]} 13. Nh4 {[%clk 0:02:53.5]} 13... Kg7 {[%clk 0:02:38.4]} 14. Nd2
{[%clk 0:02:53.4]} 14... Bd7 {[%clk 0:02:31.3]} 15. Nf1 {[%clk 0:02:53.9]} 15...
Nh5 {[%clk 0:02:22.2]} 16. Ng3 {[%clk 0:02:33.6]} 16... Nf4 {[%clk 0:02:12.2]}
17. Ne2 {[%clk 0:02:08.9]} 17... Ne6 {[%clk 0:01:39.3]} 18. Nf3 {[%clk
0:02:01.5]} 18... Rc8 {[%clk 0:01:37.1]} 19. Qd2 {[%clk 0:02:02.3]} 19... Ng8
{[%clk 0:01:29.3]} 20. Nf4 {[%clk 0:02:01.9]} 20... Nf6 {[%clk 0:01:28.3]} 21.
Re2 {[%clk 0:01:47.4]} 21... Ng5 {[%clk 0:01:19.1]} 22. Re3 {[%clk 0:01:33.1]}
22... Nge4 {[%clk 0:01:08.9]} 23. Qd1 {[%clk 0:01:25.6]} 23... Qb6 {[%clk
0:01:02.1]} 24. Qb3 {[%clk 0:01:24.2]} 24... Bc6 {[%clk 0:00:41.6]} 25. Qxb6
{[%clk 0:01:13.7]} 25... axb6 {[%clk 0:00:41.6]} 26. Rae1 {[%clk 0:01:15.6]}
26... Rfe8 {[%clk 0:00:34.5]} 27. Bb1 {[%clk 0:01:08.7]} 27... Re7 {[%clk
0:00:34.2]} 28. Nd3 {[%clk 0:01:09.4]} 28... Rce8 {[%clk 0:00:32.7]} 29. Nb4
{[%clk 0:01:10.3]} 29... Kf8 {[%clk 0:00:31.9]} 30. a3 {[%clk 0:01:06.9]} 30...
Re6 {[%clk 0:00:30.9]} 31. Ba2 {[%clk 0:00:57.4]} 31... R6e7 {[%clk 0:00:29]}
32. Nh2 {[%clk 0:00:50.1]} 32... h5 {[%clk 0:00:24.4]} 33. Nf1 {[%clk
0:00:48.5]} 33... h4 {[%clk 0:00:20.1]} 34. f3 {[%clk 0:00:49.3]} 34... Ng5
{[%clk 0:00:18.5]} 35. Rxe7 {[%clk 0:00:47.3]} 35... Rxe7 {[%clk 0:00:19.5]} 36.
Rxe7 {[%clk 0:00:48.5]} 36... Kxe7 {[%clk 0:00:20.5]} 37. Ne3 {[%clk 0:00:50.4]}
37... Ke6 {[%clk 0:00:20.7]} 38. Kf2 {[%clk 0:00:43.9]} 38... Ngh7 {[%clk
0:00:20.7]} 39. Nd3 {[%clk 0:00:37.8]} 39... g5 {[%clk 0:00:13.2]} 40. f4 {[%clk
0:00:39.1]} 40... Ke7 {[%clk 0:00:08.4]} 41. fxg5 {[%clk 0:00:29.5]} 41... Nxg5
{[%clk 0:00:07.9]} 42. Nf5+ {[%clk 0:00:30.3]} 42... Ke6 {[%clk 0:00:07.4]} 43.
Nxh4 {[%clk 0:00:32.2]} 43... Nge4+ {[%clk 0:00:07.6]} 44. Ke3 {[%clk
0:00:32.4]} 44... Ng3 {[%clk 0:00:07.7]} 45. Nf4+ {[%clk 0:00:32.2]} 45... Kd7
{[%clk 0:00:06]} 46. Kf3 {[%clk 0:00:30.8]} 46... Nge4 {[%clk 0:00:06.4]} 47. g4
{[%clk 0:00:26.6]} 47... Ng5+ {[%clk 0:00:06.5]} 48. Kg2 {[%clk 0:00:26.6]}
48... Nge4 {[%clk 0:00:06.7]} 49. Nf3 {[%clk 0:00:25]} 49... Nh7 {[%clk
0:00:05]} 50. Bxd5 {[%clk 0:00:21.4]} 50... Bxd5 {[%clk 0:00:02.3]} 51. Nxd5
{[%clk 0:00:23.3]} 1-0

[Event "*** Titled Tuesday 3|2 Blitz"]
[Site "Chess.com"]
[Date "2017.06.06"]
[Round "1"]
[White "belisarius64"]
[Black "jncool68"]
[Result "1/2-1/2"]
[WhiteElo "2228"]
[BlackElo "2506"]
[TimeControl "180+2"]
[EndTime "13:59:51 PDT"]
[Termination "Game drawn by repetition"]

1. e4 {[%clk 0:03:02]} 1... c5 {[%clk 0:02:59.9]} 2. Nf3 {[%clk 0:03:02.9]} 2...
d6 {[%clk 0:03:00.8]} 3. Bb5+ {[%clk 0:03:03.9]} 3... Nc6 {[%clk 0:03:00.3]} 4.
O-O {[%clk 0:03:04.4]} 4... Bd7 {[%clk 0:03:00.9]} 5. Re1 {[%clk 0:03:05.5]}
5... a6 {[%clk 0:03:01.1]} 6. Bf1 {[%clk 0:02:59.1]} 6... g6 {[%clk 0:03:00.2]}
7. c3 {[%clk 0:03:00.4]} 7... Bg7 {[%clk 0:03:01.3]} 8. d4 {[%clk 0:03:02.1]}
8... cxd4 {[%clk 0:03:02]} 9. cxd4 {[%clk 0:03:04]} 9... Bg4 {[%clk 0:03:02.4]}
10. Be3 {[%clk 0:03:00.5]} 10... Bxf3 {[%clk 0:03:02.7]} 11. gxf3 {[%clk
0:03:02.4]} 11... Nf6 {[%clk 0:03:02]} 12. Nc3 {[%clk 0:03:02]} 12... O-O {[%clk
0:03:02.5]} 13. d5 {[%clk 0:03:01.6]} 13... Ne5 {[%clk 0:02:55.7]} 14. Bd4
{[%clk 0:03:02.3]} 14... Nh5 {[%clk 0:02:55.3]} 15. Bg2 {[%clk 0:02:41.3]} 15...
e6 {[%clk 0:02:48]} 16. Qd2 {[%clk 0:02:36.3]} 16... Qh4 {[%clk 0:02:46]} 17.
Ne2 {[%clk 0:02:26.9]} 17... exd5 {[%clk 0:02:43.4]} 18. exd5 {[%clk 0:02:26.9]}
18... Rfe8 {[%clk 0:02:43.7]} 19. Bxe5 {[%clk 0:02:16.4]} 19... Bxe5 {[%clk
0:02:43.3]} 20. Ng3 {[%clk 0:02:18.3]} 20... Nf4 {[%clk 0:02:42.3]} 21. Re4
{[%clk 0:02:17.1]} 21... Qg5 {[%clk 0:02:41.5]} 22. Qb4 {[%clk 0:02:12.7]} 22...
h5 {[%clk 0:02:37.8]} 23. h4 {[%clk 0:01:02.9]} 23... Qxh4 {[%clk 0:02:36.9]}
24. Qxb7 {[%clk 0:01:04.5]} 24... Qg5 {[%clk 0:02:35]} 25. Rae1 {[%clk
0:00:36.2]} 25... h4 {[%clk 0:02:33.7]} 26. Rxf4 {[%clk 0:00:37.8]} 26... Qxf4
{[%clk 0:02:28.7]} 27. Nf1 {[%clk 0:00:32.1]} 27... Qg5 {[%clk 0:02:29.4]} 28.
Kh1 {[%clk 0:00:29.8]} 28... Rab8 {[%clk 0:02:29.8]} 29. Qd7 {[%clk 0:00:25]}
29... Re7 {[%clk 0:02:28.7]} 30. Qa4 {[%clk 0:00:20.3]} 30... Rxb2 {[%clk
0:02:28.1]} 31. f4 {[%clk 0:00:19.5]} 31... Qg4 {[%clk 0:02:17.6]} 32. Nh2
{[%clk 0:00:18.2]} 32... Qf5 {[%clk 0:02:10]} 33. fxe5 {[%clk 0:00:19.1]} 33...
Qxf2 {[%clk 0:02:10.9]} 34. Rg1 {[%clk 0:00:19.9]} 34... Rxe5 {[%clk 0:02:11.6]}
35. Ng4 {[%clk 0:00:20.3]} 35... Qg3 {[%clk 0:01:58.8]} 36. Nxe5 {[%clk
0:00:21.2]} 36... Qxe5 {[%clk 0:01:56.5]} 37. Qxh4 {[%clk 0:00:21.2]} 37... Rxa2
{[%clk 0:01:54.9]} 38. Rb1 {[%clk 0:00:21.8]} 38... Kg7 {[%clk 0:01:53.7]} 39.
Rd1 {[%clk 0:00:21.5]} 39... f6 {[%clk 0:01:39.9]} 40. Re1 {[%clk 0:00:21.7]}
40... Re2 {[%clk 0:01:38.7]} 41. Rxe2 {[%clk 0:00:15.7]} 41... Qxe2 {[%clk
0:01:40.6]} 42. Qb4 {[%clk 0:00:16.5]} 42... Qe5 {[%clk 0:01:30.7]} 43. Qb7+
{[%clk 0:00:16.2]} 43... Kh6 {[%clk 0:01:31.9]} 44. Qxa6 {[%clk 0:00:17.4]}
44... g5 {[%clk 0:01:32.4]} 45. Qc8 {[%clk 0:00:17.8]} 45... Qe1+ {[%clk
0:01:28.3]} 46. Kh2 {[%clk 0:00:18.6]} 46... Qe5+ {[%clk 0:01:29.9]} 47. Kg1
{[%clk 0:00:19.1]} 47... f5 {[%clk 0:01:31.1]} 48. Qf8+ {[%clk 0:00:19]} 48...
Kh5 {[%clk 0:01:32]} 49. Qf7+ {[%clk 0:00:17.6]} 49... Kg4 {[%clk 0:01:32.9]}
50. Qh7 {[%clk 0:00:17.2]} 50... Qe3+ {[%clk 0:01:32.7]} 51. Kh2 {[%clk
0:00:17.8]} 51... Qg3+ {[%clk 0:01:33.4]} 52. Kg1 {[%clk 0:00:19.1]} 52... Qe1+
{[%clk 0:01:28.8]} 53. Kh2 {[%clk 0:00:20.5]} 53... Qg3+ {[%clk 0:01:25.4]} 54.
Kg1 {[%clk 0:00:21.4]} 54... Kf4 {[%clk 0:01:27]} 55. Qg7 {[%clk 0:00:20.7]}
55... Qe1+ {[%clk 0:01:26.3]} 56. Kh2 {[%clk 0:00:21.3]} 56... Qe5 {[%clk
0:01:24.7]} 57. Qh6 {[%clk 0:00:20]} 57... Ke3+ {[%clk 0:01:21.5]} 58. Kg1
{[%clk 0:00:21.3]} 58... Qf4 {[%clk 0:01:22.9]} 59. Qe6+ {[%clk 0:00:21.9]}
59... Kd2 {[%clk 0:01:22.5]} 60. Qc8 {[%clk 0:00:21.1]} 60... g4 {[%clk
0:01:22.1]} 61. Qa6 {[%clk 0:00:21.1]} 61... Qe3+ {[%clk 0:01:20.8]} 62. Kh2
{[%clk 0:00:19.8]} 62... Qf4+ {[%clk 0:01:18.2]} 63. Kg1 {[%clk 0:00:20.8]}
63... g3 {[%clk 0:01:15.3]} 64. Qa2+ {[%clk 0:00:21]} 64... Kc3 {[%clk
0:01:15.9]} 65. Qa3+ {[%clk 0:00:22]} 65... Kc2 {[%clk 0:01:12.6]} 66. Qa2+
{[%clk 0:00:23.1]} 66... Kc1 {[%clk 0:01:13.5]} 67. Qa1+ {[%clk 0:00:24.2]}
67... Kd2 {[%clk 0:01:14.7]} 68. Qb2+ {[%clk 0:00:25.1]} 68... Kd1 {[%clk
0:01:13.6]} 69. Qb1+ {[%clk 0:00:26.4]} 69... Kd2 {[%clk 0:01:10.9]} 70. Qb2+
{[%clk 0:00:27.7]} 70... Kd1 {[%clk 0:01:12.2]} 71. Qb1+ {[%clk 0:00:26.5]}
71... Kd2 {[%clk 0:01:13.3]} 72. Qb2+ {[%clk 0:00:27.6]} 1/2-1/2

[Event "*** Titled Tuesday 3|2 Blitz"]
[Site "Chess.com"]
[Date "2017.06.06"]
[Round "1"]
[White "GGuseinov"]
[Black "djano"]
[Result "1/2-1/2"]
[WhiteElo "2707"]
[BlackElo "2365"]
[TimeControl "180+2"]
[EndTime "14:00:07 PDT"]
[Termination "Game drawn - insufficient material"]

1. e4 {[%clk 0:03:02]} 1... c5 {[%clk 0:03:00.1]} 2. Nf3 {[%clk 0:02:54.3]} 2...
Nc6 {[%clk 0:03:00.5]} 3. Nc3 {[%clk 0:02:55]} 3... g6 {[%clk 0:03:00.5]} 4. d4
{[%clk 0:02:55.8]} 4... cxd4 {[%clk 0:03:00.4]} 5. Nxd4 {[%clk 0:02:57.7]} 5...
Bg7 {[%clk 0:03:00.7]} 6. Be3 {[%clk 0:02:58.9]} 6... Nf6 {[%clk 0:02:49.3]} 7.
Bc4 {[%clk 0:02:59.7]} 7... Qa5 {[%clk 0:02:48.6]} 8. O-O {[%clk 0:02:59.9]}
8... O-O {[%clk 0:02:46]} 9. Bb3 {[%clk 0:03:01]} 9... d6 {[%clk 0:02:45.1]} 10.
h3 {[%clk 0:03:00.6]} 10... Bd7 {[%clk 0:02:42.2]} 11. Nf3 {[%clk 0:02:59.5]}
11... Rac8 {[%clk 0:02:35.7]} 12. Re1 {[%clk 0:03:00.4]} 12... a6 {[%clk
0:02:28.1]} 13. Qe2 {[%clk 0:02:51.2]} 13... Qh5 {[%clk 0:02:24.3]} 14. Rad1
{[%clk 0:02:52]} 14... Be6 {[%clk 0:02:00.6]} 15. Bxe6 {[%clk 0:02:27.1]} 15...
fxe6 {[%clk 0:02:02.5]} 16. Ng5 {[%clk 0:02:28.3]} 16... Qxe2 {[%clk 0:01:56.7]}
17. Rxe2 {[%clk 0:02:30.2]} 17... Nd8 {[%clk 0:01:55.6]} 18. Bb6 {[%clk
0:02:30.3]} 18... e5 {[%clk 0:01:23.1]} 19. Nd5 {[%clk 0:02:31.3]} 19... Nc6
{[%clk 0:01:11.4]} 20. c3 {[%clk 0:02:26.2]} 20... Nd7 {[%clk 0:01:05.3]} 21.
Be3 {[%clk 0:02:26]} 21... Bf6 {[%clk 0:00:59.6]} 22. Nf3 {[%clk 0:02:21.4]}
22... Kf7 {[%clk 0:00:53.8]} 23. g4 {[%clk 0:02:20.6]} 23... Rfd8 {[%clk
0:00:49.1]} 24. Kg2 {[%clk 0:02:21.7]} 24... Nf8 {[%clk 0:00:48.2]} 25. h4
{[%clk 0:02:22.7]} 25... Ne6 {[%clk 0:00:49]} 26. Rh1 {[%clk 0:02:23.6]} 26...
Nc7 {[%clk 0:00:46.6]} 27. h5 {[%clk 0:02:22.3]} 27... Rh8 {[%clk 0:00:26.2]}
28. g5 {[%clk 0:02:16.7]} 28... Bg7 {[%clk 0:00:24.4]} 29. h6 {[%clk 0:02:17.9]}
29... Bf8 {[%clk 0:00:25.3]} 30. Nh4 {[%clk 0:02:18.8]} 30... Ne6 {[%clk
0:00:21.1]} 31. Rf1 {[%clk 0:02:16.7]} 31... Na5 {[%clk 0:00:20.9]} 32. f4
{[%clk 0:02:17.7]} 32... exf4 {[%clk 0:00:21.6]} 33. Nxf4 {[%clk 0:02:15.5]}
33... Nxf4+ {[%clk 0:00:22.7]} 34. Rxf4+ {[%clk 0:02:17.4]} 34... Ke8 {[%clk
0:00:20.9]} 35. Ref2 {[%clk 0:02:18]} 35... Nc4 {[%clk 0:00:20.5]} 36. Bc1
{[%clk 0:02:19.1]} 36... Ne5 {[%clk 0:00:20.8]} 37. Rf1 {[%clk 0:02:15.6]} 37...
Nd3 {[%clk 0:00:21.6]} 38. R4f3 {[%clk 0:02:16.6]} 38... Ne5 {[%clk 0:00:21.4]}
39. Rh3 {[%clk 0:02:15.1]} 39... e6 {[%clk 0:00:20.7]} 40. Bf4 {[%clk
0:02:15.8]} 40... Be7 {[%clk 0:00:19.4]} 41. Bxe5 {[%clk 0:02:17.1]} 41... dxe5
{[%clk 0:00:21.3]} 42. Nf3 {[%clk 0:02:18.8]} 42... Rd8 {[%clk 0:00:18.5]} 43.
Rg3 {[%clk 0:02:15.3]} 43... Rf8 {[%clk 0:00:18.9]} 44. Rf2 {[%clk 0:02:15.3]}
44... Rf4 {[%clk 0:00:19.6]} 45. Nxe5 {[%clk 0:02:13.3]} 45... Rxe4 {[%clk
0:00:20.9]} 46. Nxg6 {[%clk 0:02:11.9]} 46... hxg6 {[%clk 0:00:21]} 47. h7
{[%clk 0:02:13.3]} 47... Rh4 {[%clk 0:00:19.2]} 48. Re3 {[%clk 0:02:09.4]} 48...
Rxh7 {[%clk 0:00:19.3]} 49. Rxe6 {[%clk 0:02:10.5]} 49... Rd6 {[%clk 0:00:20]}
50. Rxd6 {[%clk 0:02:09.5]} 50... Bxd6 {[%clk 0:00:21.9]} 51. Rf6 {[%clk
0:02:11.1]} 51... Ke7 {[%clk 0:00:21.3]} 52. Kf3 {[%clk 0:02:08]} 52... Rh2
{[%clk 0:00:21.1]} 53. Rxg6 {[%clk 0:01:57.9]} 53... Rxb2 {[%clk 0:00:21.7]} 54.
Ke4 {[%clk 0:01:59.1]} 54... Re2+ {[%clk 0:00:21.1]} 55. Kd3 {[%clk 0:01:56.6]}
55... Rxa2 {[%clk 0:00:20.8]} 56. Rg7+ {[%clk 0:01:57.9]} 56... Ke6 {[%clk
0:00:21.8]} 57. Rxb7 {[%clk 0:01:59.8]} 57... Be5 {[%clk 0:00:22]} 58. g6 {[%clk
0:01:57.2]} 58... Rg2 {[%clk 0:00:22.3]} 59. Rb6+ {[%clk 0:01:57.7]} 59... Kf5
{[%clk 0:00:22.4]} 60. Rxa6 {[%clk 0:01:57.7]} 60... Rg3+ {[%clk 0:00:21.5]} 61.
Ke2 {[%clk 0:01:56.9]} 61... Rxc3 {[%clk 0:00:19.9]} 62. Kd2 {[%clk 0:01:56.5]}
62... Rg3 {[%clk 0:00:20.7]} 63. Ke2 {[%clk 0:01:57.7]} 63... Bf6 {[%clk
0:00:21.8]} 64. Ra5+ {[%clk 0:01:49.3]} 64... Ke4 {[%clk 0:00:20.4]} 65. Ra4+
{[%clk 0:01:48.2]} 65... Bd4 {[%clk 0:00:20.7]} 66. Ra6 {[%clk 0:01:42.5]} 66...
Rg2+ {[%clk 0:00:21.8]} 67. Kf1 {[%clk 0:01:43]} 67... Rg1+ {[%clk 0:00:21.5]}
68. Ke2 {[%clk 0:01:43.9]} 68... Rg3 {[%clk 0:00:19.5]} 69. Re6+ {[%clk
0:01:43.9]} 69... Kf5 {[%clk 0:00:19.8]} 70. Rd6 {[%clk 0:01:42.6]} 70... Ke5
{[%clk 0:00:20]} 71. Ra6 {[%clk 0:01:42.8]} 71... Ke4 {[%clk 0:00:20.5]} 72.
Re6+ {[%clk 0:01:43]} 72... Be5 {[%clk 0:00:21.8]} 73. Kf2 {[%clk 0:01:42.6]}
73... Rg5 {[%clk 0:00:21.5]} 74. Ra6 {[%clk 0:01:43.4]} 74... Bd4+ {[%clk
0:00:20.1]} 75. Ke2 {[%clk 0:01:42.3]} 75... Rg3 {[%clk 0:00:19]} 76. Re6+
{[%clk 0:01:42.4]} 76... Kf5 {[%clk 0:00:18.7]} 77. Ra6 {[%clk 0:01:40.8]} 77...
Rxg6 {[%clk 0:00:18.9]} 78. Rxg6 {[%clk 0:01:39.1]} 78... Kxg6 {[%clk
0:00:20.8]} 1/2-1/2